bitfinex/quotes_BTCUSD_20230906
["timestamp","ask_amount","ask_price","bid_price","bid_amount"]
[1694038895711,3.78209129,25772.0,25771.0,0.002]
[1694038895909,3.78197129,25772.0,25771.0,0.002]
[1694038896116,3.97166503,25772.0,25771.0,0.002]
[1694038896325,3.78503129,25772.0,25771.0,0.002]
[1694038896485,3.78563129,25772.0,25771.0,0.002]
[1694038896691,3.78581129,25772.0,25771.0,0.002]
[1694038896895,3.78575129,25772.0,25771.0,0.002]
[1694038897102,3.78581129,25772.0,25771.0,0.002]
[1694038897304,3.78623129,25772.0,25771.0,0.002]
[1694038897527,3.78641129,25772.0,25771.0,0.002]
[1694038897759,3.78635129,25772.0,25771.0,0.002]
[1694038897992,3.78401129,25772.0,25771.0,0.002]
[1694038898191,3.78491129,25772.0,25771.0,0.002]
[1694038898397,3.78527129,25772.0,25771.0,0.002]
[1694038898563,3.78545129,25772.0,25771.0,0.002]
[1694038898899,3.74611129,25772.0,25771.0,0.002]
[1694038899121,3.74587129,25772.0,25771.0,0.002]
[1694038899231,3.74581129,25772.0,25771.0,0.002]
[1694038899639,3.70545129,25772.0,25771.0,0.002]
[1694038899885,3.70533129,25772.0,25771.0,0.002]
[1694038900297,3.70527129,25772.0,25771.0,0.002]
[1694038900524,3.70533129,25772.0,25771.0,0.002]
[1694038900915,3.70527129,25772.0,25771.0,0.002]
[1694038901343,3.70521129,25772.0,25771.0,0.002]
[1694038901480,3.70509129,25772.0,25771.0,0.002]
[1694038901734,3.70503129,25772.0,25771.0,0.002]
[1694038901930,3.70497129,25772.0,25771.0,0.002]
[1694038902290,3.70491129,25772.0,25771.0,0.002]
[1694038902448,3.70521129,25772.0,25771.0,0.002]
[1694038902654,3.70515129,25772.0,25771.0,0.002]
[1694038902856,3.96046523,25772.0,25771.0,0.002]
[1694038903056,3.96040523,25772.0,25771.0,0.002]
[1694038903259,3.96034523,25772.0,25771.0,0.002]
[1694038903437,3.70503129,25772.0,25771.0,0.002]
[1694038903637,3.70581129,25772.0,25771.0,0.002]
[1694038903844,3.70593129,25772.0,25771.0,0.002]
[1694038904049,3.70587129,25772.0,25771.0,0.002]
[1694038904251,3.92012826,25772.0,25771.0,0.002]
[1694038904455,3.91952826,25772.0,25771.0,0.002]
[1694038904649,3.91946826,25772.0,25771.0,0.002]
[1694038904851,3.91832826,25772.0,25771.0,0.002]
[1694038905050,2.66450599,25772.0,25771.0,0.002]
[1694038905250,2.59184599,25772.0,25771.0,0.002]
[1694038906328,3.68215573,25772.0,25771.0,0.002]
[1694038909178,3.36788199,25772.0,25771.0,0.002]
[1694038916952,3.57461794,25772.0,25771.0,0.002]
[1694038925041,3.77689794,25772.0,25771.0,0.002]
[1694038925247,3.77953794,25772.0,25771.0,0.002]
[1694038925455,4.09417168,25772.0,25771.0,0.002]
[1694038925661,4.09477168,25772.0,25771.0,0.002]
[1694038925868,4.09393168,25772.0,25771.0,0.002]
[1694038926049,4.09381168,25772.0,25771.0,0.002]
[1694038926279,4.09375168,25772.0,25771.0,0.002]
[1694038926485,4.09381168,25772.0,25771.0,0.002]
[1694038926692,4.09489168,25772.0,25771.0,0.002]
[1694038926895,4.09483168,25772.0,25771.0,0.002]
[1694038927110,4.09477168,25772.0,25771.0,0.002]
[1694038927316,4.09471168,25772.0,25771.0,0.002]
[1694038927503,4.09453168,25772.0,25771.0,0.002]
[1694038927705,4.09435168,25772.0,25771.0,0.002]
[1694038927905,4.09297168,25772.0,25771.0,0.002]
[1694038928062,4.09291168,25772.0,25771.0,0.002]
[1694038928278,4.09285168,25772.0,25771.0,0.002]
[1694038928491,4.09273168,25772.0,25771.0,0.002]
[1694038928703,4.09261168,25772.0,25771.0,0.002]
[1694038928900,4.09333168,25772.0,25771.0,0.002]
[1694038929099,4.09381168,25772.0,25771.0,0.002]
[1694038929320,4.09291168,25772.0,25771.0,0.002]
[1694038929546,4.09285168,25772.0,25771.0,0.002]
[1694038929754,4.09279168,25772.0,25771.0,0.002]
[1694038929929,4.09315168,25772.0,25771.0,0.002]
[1694038930126,4.09309168,25772.0,25771.0,0.002]
[1694038930368,4.09177168,25772.0,25771.0,0.002]
[1694038930574,4.09255168,25772.0,25771.0,0.002]
[1694038930777,4.09249168,25772.0,25771.0,0.002]
[1694038930976,4.09273168,25772.0,25771.0,0.002]
[1694038931435,4.09261168,25772.0,25771.0,0.002]
[1694038931844,4.09255168,25772.0,25771.0,0.002]
[1694038932092,4.09387168,25772.0,25771.0,0.002]
[1694038932296,4.09381168,25772.0,25771.0,0.002]
[1694038932465,4.09375168,25772.0,25771.0,0.002]
[1694038932663,4.09327168,25772.0,25771.0,0.002]
[1694038933135,4.09321168,25772.0,25771.0,0.002]
[1694038933341,4.09315168,25772.0,25771.0,0.002]
[1694038933516,4.09309168,25772.0,25771.0,0.002]
[1694038933716,4.09321168,25772.0,25771.0,0.002]
[1694038933941,4.09645168,25772.0,25771.0,0.002]
[1694038934163,4.10029168,25772.0,25771.0,0.002]
[1694038934373,4.09999168,25772.0,25771.0,0.002]
[1694038934580,4.10005168,25772.0,25771.0,0.002]
[1694038934783,4.09981168,25772.0,25771.0,0.002]
[1694038935088,4.09957168,25772.0,25771.0,0.002]
[1694038935288,4.09939168,25772.0,25771.0,0.002]
[1694038935495,4.09927168,25772.0,25771.0,0.002]
[1694038935646,4.09915168,25772.0,25771.0,0.002]
[1694038935853,4.09897168,25772.0,25771.0,0.002]
[1694038936057,4.09915168,25772.0,25771.0,0.002]
[1694038936233,4.09897168,25772.0,25771.0,0.002]
[1694038936438,4.09801168,25772.0,25771.0,0.002]
[1694038936661,4.09807168,25772.0,25771.0,0.002]
[1694038936868,4.09801168,25772.0,25771.0,0.002]
[1694038937075,4.09789168,25772.0,25771.0,0.002]
[1694038937286,4.09783168,25772.0,25771.0,0.002]
[1694038937487,5.18712097,25772.0,25771.0,0.002]
[1694038937685,5.39772867,25772.0,25771.0,0.002]
[1694038937939,0.04,25766.0,25762.0,0.2551]
[1694038938147,0.40034699,25764.0,25762.0,0.2551]
[1694038938381,3.13900778,25763.0,25761.0,0.03883]
[1694038938575,0.23288748,25762.0,25761.0,0.03883]
[1694038938896,2.17220675,25762.0,25761.0,0.03883]
[1694038939296,2.94854375,25762.0,25761.0,0.03883]
[1694038939476,2.17220675,25762.0,25761.0,0.03883]
[1694038939694,2.17420675,25762.0,25761.0,0.06283]
[1694038939907,1.39786975,25762.0,25761.0,0.06283]
[1694038941171,1.00817802,25762.0,25761.0,0.06283]
[1694038941374,1.01017802,25762.0,25761.0,0.08683]
[1694038941950,1.19636001,25762.0,25761.0,0.08683]
[1694038942444,1.97269701,25762.0,25761.0,0.08683]
[1694038943251,1.73980953,25762.0,25761.0,0.08683]
[1694038944475,1.87938009,25762.0,25761.0,0.08683]
[1694038944923,1.6931981,25762.0,25761.0,0.08683]
[1694038945129,1.30655283,25762.0,25761.0,0.08683]
[1694038946503,1.39957885,25762.0,25761.0,0.08683]
[1694038947740,0.62324185,25762.0,25761.0,0.08683]
[1694038947957,0.48367129,25762.0,25761.0,0.08683]
[1694038951298,0.39064527,25762.0,25761.0,0.08683]
[1694038956415,0.004,25762.0,25761.0,1.760364]
[1694038956622,0.004,25762.0,25761.0,2.536731]
[1694038970014,0.24027555,25762.0,25761.0,2.536731]
[1694038971685,0.24027555,25762.0,25761.0,1.760364]
[1694038981257,0.33330165,25762.0,25761.0,1.760364]
[1694038982453,0.33330165,25762.0,25761.0,0.983997]
[1694038984455,0.4728408,25762.0,25761.0,0.983997]
[1694038984978,0.4728408,25762.0,25761.0,0.20763]
[1694038985190,0.55774184,25762.0,25761.0,0.20763]
[1694038985568,0.74379404,25762.0,25761.0,0.20763]
[1694038986383,0.83682015,25762.0,25761.0,0.20763]
[1694038987779,1.61315715,25762.0,25761.0,0.08683]
[1694038989236,1.42710495,25762.0,25761.0,0.08683]
[1694038994529,0.65076795,25762.0,25761.0,0.08683]
[1694038994710,1.81375022,25762.0,25761.0,0.08683]
[1694038995352,1.03741322,25762.0,25761.0,0.08683]
[1694038995555,0.80113767,25762.0,25761.0,0.08683]
[1694038995991,0.42293908,25762.0,25761.0,0.20763]
[1694038996203,0.33014904,25762.0,25761.0,2.536731]
[1694038996391,0.14377522,25762.0,25761.0,2.536731]
[1694038999306,0.14377522,25762.0,25761.0,1.760364]
[1694039000681,0.33014904,25762.0,25761.0,1.760364]
[1694039001062,0.14377522,25762.0,25761.0,1.760364]
[1694039001280,0.33014904,25762.0,25761.0,1.760364]
[1694039002591,0.41018679,25762.0,25761.0,1.760364]
[1694039010419,0.27041157,25762.0,25761.0,1.760364]
[1694039019117,0.27041157,25762.0,25761.0,2.536731]
[1694039020076,0.27041157,25762.0,25761.0,1.760364]
[1694039027835,0.50297683,25762.0,25761.0,1.760364]
[1694039031660,0.27041157,25762.0,25761.0,1.760364]
[1694039032233,0.27041157,25762.0,25761.0,0.983997]
[1694039032736,0.50297683,25762.0,25761.0,0.983997]
[1694039034319,0.50297683,25762.0,25761.0,0.20763]
[1694039037604,0.42293908,25762.0,25761.0,0.983997]
[1694039038198,0.23656526,25762.0,25761.0,0.983997]
[1694039039243,0.23656526,25762.0,25761.0,0.20763]
[1694039040930,0.23656526,25762.0,25761.0,0.983997]
[1694039041665,0.23656526,25762.0,25761.0,1.760364]
[1694039041886,0.23656526,25762.0,25761.0,2.536731]
[1694039061443,0.14389539,25762.0,25761.0,3.00337627]
[1694039061671,0.004,25762.0,25761.0,3.18717627]
[1694039061868,0.18652905,25765.0,25763.0,0.08]
[1694039061869,0.23315397,25765.0,25763.0,0.08]
[1694039062079,0.09325858,25765.0,25764.0,4.08218]
[1694039062284,0.23315397,25767.0,25764.0,4.08218]
[1694039062491,0.23315397,25767.0,25766.0,0.1208]
[1694039062710,0.23315397,25767.0,25766.0,3.225664]
[1694039063327,0.09525858,25767.0,25766.0,3.225664]
[1694039064364,0.002,25767.0,25766.0,3.225664]
[1694039064573,0.002,25767.0,25766.0,3.249664]
[1694039064993,0.004,25767.0,25766.0,3.274664]
[1694039074196,0.004,25767.0,25766.0,3.297664]
[1694039079208,0.004,25767.0,25766.0,3.68430927]
[1694039080697,0.004,25767.0,25766.0,3.76430927]
[1694039086519,0.004,25767.0,25766.0,3.80430927]
[1694039087371,0.1546,25771.0,25767.0,0.12]
[1694039087606,0.0072,25773.0,25770.0,0.1208]
[1694039087817,0.09325858,25775.0,25772.0,0.1208]
[1694039088027,0.09325858,25775.0,25771.0,1.70679011]
[1694039088028,0.23094985,25775.0,25774.0,0.1208]
[1694039088247,0.23094985,25775.0,25774.0,1.82740811]
[1694039088468,0.23094985,25775.0,25774.0,2.448725]
[1694039088827,0.09325858,25776.0,25774.0,2.448725]
[1694039089034,0.09325858,25776.0,25775.0,0.1208]
[1694039089191,0.09325858,25776.0,25775.0,2.448635]
[1694039089404,0.39825397,25777.0,25775.0,2.448635]
[1694039089618,0.61979924,25777.0,25776.0,0.1208]
[1694039089814,0.61979924,25777.0,25776.0,1.67263]
[1694039090441,0.47990385,25777.0,25776.0,1.67263]
[1694039090639,0.47990385,25777.0,25776.0,1.28473435]
[1694039090849,0.47990385,25777.0,25776.0,1.55183]
[1694039091121,0.50390385,25777.0,25776.0,1.67463]
[1694039091947,0.52890385,25777.0,25776.0,1.67663]
[1694039093488,0.77262821,25777.0,25776.0,1.67663]
[1694039094088,0.43564527,25777.0,25776.0,1.67663]
[1694039094303,0.43564527,25777.0,25776.0,2.452545]
[1694039094666,0.43564527,25777.0,25776.0,2.327745]
[1694039095933,0.049,25777.0,25776.0,2.327745]
[1694039096147,0.049,25777.0,25776.0,2.448545]
[1694039099522,0.049,25777.0,25776.0,1.67263]
[1694039102335,0.049,25777.0,25776.0,2.448545]
[1694039109480,0.049,25777.0,25776.0,3.09899027]
[1694039116247,0.049,25777.0,25776.0,2.712345]
[1694039116452,0.049,25777.0,25776.0,2.568545]
[1694039122408,0.24546146,25778.0,25777.0,0.08]
[1694039122611,0.24546146,25778.0,25777.0,2.528455]
[1694039123584,0.24546146,25778.0,25777.0,2.529455]
[1694039123585,0.25246146,25778.0,25777.0,2.529455]
[1694039124202,0.25746146,25778.0,25777.0,2.529455]
[1694039126788,0.28518761,25778.0,25777.0,2.449455]
[1694039127015,0.28518761,25778.0,25777.0,0.001]
[1694039127016,0.83538115,25778.0,25777.0,0.001]
[1694039127270,1.03526777,25778.0,25777.0,0.001]
[1694039127617,1.81112277,25778.0,25777.0,0.001]
[1694039129132,1.61123615,25778.0,25777.0,0.001]
[1694039129332,2.09114,25778.0,25777.0,0.001]
[1694039129554,2.987795,25778.0,25777.0,0.001]
[1694039129942,3.23602331,25778.0,25777.0,0.001]
[1694039130565,2.43244216,25778.0,25777.0,0.001]
[1694039130776,0.75993216,25778.0,25777.0,0.001]
[1694039132027,0.89982755,25778.0,25777.0,0.001]
[1694039132669,0.80656897,25778.0,25777.0,0.001]
[1694039132873,0.75964073,25778.0,25777.0,0.001]
[1694039133896,0.89953612,25778.0,25777.0,0.001]
[1694039135469,0.89956228,25778.0,25777.0,0.001]
[1694039135683,0.80656897,25778.0,25777.0,0.001]
[1694039136538,0.89956866,25778.0,25777.0,0.001]
[1694039136742,0.80656897,25778.0,25777.0,0.001]
[1694039138384,0.0318,25778.0,25777.0,2.328655]
[1694039138585,0.0318,25778.0,25777.0,2.449455]
[1694039147138,0.0318,25778.0,25777.0,0.001]
[1694039147552,0.0318,25778.0,25777.0,1.55277]
[1694039148214,0.0318,25778.0,25777.0,1.67357]
[1694039148424,0.0318,25778.0,25777.0,2.449455]
[1694039157588,0.0318,25778.0,25777.0,3.57935838]
[1694039157788,0.0318,25778.0,25777.0,3.86850027]
[1694039158205,0.0198,25780.0,25779.0,0.5886]
[1694039158413,0.0198,25780.0,25779.0,5.29817027]
[1694039159048,0.0198,25780.0,25779.0,5.31797027]
[1694039160837,0.0218,25780.0,25779.0,5.34297027]
[1694039161559,0.0238,25780.0,25779.0,5.36797027]
[1694039163730,0.0238,25780.0,25779.0,4.95937027]
[1694039167281,0.0238,25780.0,25779.0,3.2741]
[1694039190627,0.11286995,25783.0,25780.0,0.06]
[1694039190842,0.0198,25783.0,25782.0,0.1]
[1694039191046,0.0198,25783.0,25782.0,1.97447]
[1694039191279,0.0198,25783.0,25782.0,3.13685027]
[1694039191894,0.0218,25783.0,25782.0,3.13685027]
[1694039192106,0.0238,25783.0,25782.0,3.16185027]
[1694039192314,0.0218,25783.0,25782.0,3.16185027]
[1694039192726,0.0238,25783.0,25782.0,3.18685027]
[1694039196215,0.0238,25783.0,25782.0,3.42845027]
[1694039200990,0.1641,25789.0,25782.0,3.83705027]
[1694039201195,0.23248558,25790.0,25788.0,0.1208]
[1694039201558,0.09299423,25790.0,25789.0,3.222896]
[1694039202808,0.09299423,25790.0,25789.0,3.224896]
[1694039202809,0.11099423,25790.0,25789.0,3.224896]
[1694039203028,0.13299423,25790.0,25789.0,3.226896]
[1694039203386,0.04,25790.0,25789.0,3.226896]
[1694039203593,0.13299423,25790.0,25789.0,3.226896]
[1694039203939,0.41893191,25790.0,25789.0,2.451372]
[1694039204093,0.5118558,25790.0,25789.0,2.451372]
[1694039204315,1.71195258,25790.0,25789.0,0.004]
[1694039204513,1.80504818,25790.0,25789.0,0.004]
[1694039204724,0.79706859,25790.0,25789.0,0.004]
[1694039205238,0.93645243,25790.0,25789.0,0.004]
[1694039212072,0.84336753,25790.0,25789.0,0.004]
[1694039212266,0.84336753,25790.0,25789.0,1.555048]
[1694039212669,0.70398369,25790.0,25789.0,1.555048]
[1694039215133,0.70398369,25790.0,25789.0,2.330572]
[1694039219801,0.13290357,25790.0,25789.0,2.451372]
[1694039223634,0.04,25790.0,25789.0,2.451372]
[1694039223835,0.04,25790.0,25789.0,3.226896]
[1694039226838,0.23,25790.0,25789.0,3.226896]
[1694039239326,0.23,25790.0,25789.0,3.249896]
[1694039239684,0.208,25790.0,25789.0,3.247896]
[1694039239892,0.223,25790.0,25789.0,3.248896]
[1694039240098,0.205,25790.0,25789.0,3.246896]
[1694039240551,0.218,25790.0,25789.0,3.247896]
[1694039261420,0.218,25790.0,25789.0,3.224896]
[1694039265351,0.31090357,25790.0,25789.0,3.224896]
[1694039269402,0.35738384,25790.0,25789.0,3.224896]
[1694039272572,0.45051493,25790.0,25789.0,3.224896]
[1694039277434,0.31113109,25790.0,25789.0,3.224896]
[1694039277706,0.45051493,25790.0,25789.0,3.224896]
[1694039278114,0.31113109,25790.0,25789.0,3.224896]
[1694039278339,0.45051493,25790.0,25789.0,3.224896]
[1694039278746,0.30613109,25790.0,25789.0,3.224896]
[1694039279126,0.44551493,25790.0,25789.0,3.224896]
[1694039282018,0.30613109,25790.0,25789.0,3.224896]
[1694039282787,0.44551493,25790.0,25789.0,3.224896]
[1694039289943,0.44551493,25790.0,25789.0,0.1228]
[1694039290158,0.44551493,25790.0,25789.0,2.449372]
[1694039290964,0.44551493,25790.0,25789.0,3.224896]
[1694039293450,0.53837231,25790.0,25789.0,2.328572]
[1694039293631,0.44548559,25790.0,25789.0,2.328572]
[1694039293830,0.63299624,25790.0,25789.0,2.328572]
[1694039294274,0.44548559,25790.0,25789.0,2.328572]
[1694039294447,0.62814994,25790.0,25789.0,2.328572]
[1694039301283,0.63080639,25790.0,25789.0,0.777524]
[1694039301465,0.63080639,25790.0,25789.0,1.553048]
[1694039303069,1.99647359,25790.0,25789.0,0.002]
[1694039304624,1.45934455,25790.0,25789.0,0.002]
[1694039308633,2.62148382,25790.0,25789.0,0.002]
[1694039308845,1.84598982,25790.0,25789.0,0.002]
[1694039309080,1.07049582,25790.0,25789.0,0.002]
[1694039312559,1.256621,25790.0,25789.0,0.002]
[1694039312765,1.07049582,25790.0,25789.0,0.002]
[1694039313439,1.25661854,25790.0,25789.0,0.002]
[1694039315252,0.83801023,25790.0,25789.0,0.002]
[1694039315749,2.27143327,25790.0,25789.0,0.002]
[1694039315963,3.40590998,25790.0,25789.0,0.002]
[1694039316158,3.43797292,25790.0,25789.0,0.002]
[1694039316366,3.40590998,25790.0,25789.0,0.002]
[1694039316595,3.39090998,25790.0,25789.0,0.001]
[1694039316802,3.80155525,25790.0,25789.0,0.003]
[1694039317404,3.80155525,25790.0,25789.0,0.001]
[1694039317405,3.77755525,25790.0,25789.0,0.001]
[1694039317613,3.77755525,25790.0,25784.0,1.551336]
[1694039317614,0.02,25789.0,25784.0,1.551336]
[1694039317824,0.23257618,25785.0,25784.0,1.551336]
[1694039318433,0.09303047,25785.0,25784.0,1.551336]
[1694039318881,0.09503047,25785.0,25784.0,1.551336]
[1694039319692,0.09903047,25785.0,25784.0,1.551336]
[1694039320437,0.32240128,25785.0,25784.0,1.551336]
[1694039321436,0.22937081,25785.0,25784.0,1.551336]
[1694039321638,0.22937081,25785.0,25783.0,1.551373]
[1694039322426,0.22537081,25785.0,25783.0,1.551373]
[1694039322847,2.29044299,25785.0,25782.0,1.800922]
[1694039323048,0.23003096,25784.0,25782.0,1.800922]
[1694039324674,0.23003096,25784.0,25782.0,1.806922]
[1694039325520,0.23003096,25784.0,25782.0,2.582657]
[1694039325932,0.23003096,25784.0,25782.0,2.587657]
[1694039332798,0.42003096,25784.0,25782.0,2.587657]
[1694039336967,0.21374653,25783.0,25782.0,2.587657]
[1694039337744,0.21374653,25783.0,25782.0,2.582657]
[1694039337937,0.21374653,25783.0,25782.0,2.576657]
[1694039338138,0.21574653,25783.0,25782.0,2.605657]
[1694039338971,0.002,25783.0,25782.0,2.605657]
[1694039339187,0.002,25783.0,25782.0,2.726457]
[1694039344960,0.192,25783.0,25782.0,2.726457]
[1694039355360,0.192,25783.0,25782.0,2.721457]
[1694039359904,0.2849444,25783.0,25782.0,2.721457]
[1694039360602,0.192,25783.0,25782.0,3.94683727]
[1694039360805,0.192,25783.0,25782.0,4.26683727]
[1694039365490,0.39026364,25788.0,25784.0,0.04]
[1694039365491,0.0929444,25788.0,25784.0,0.04]
[1694039365705,0.0929444,25789.0,25787.0,0.1208]
[1694039365931,0.0929444,25789.0,25788.0,1.671908]
[1694039366131,0.0929444,25789.0,25788.0,3.223016]
[1694039367323,0.0969444,25789.0,25788.0,3.223016]
[1694039367654,0.0989444,25789.0,25788.0,3.223016]
[1694039367858,0.01,25789.0,25788.0,3.223016]
[1694039369036,0.01,25789.0,25788.0,3.13864474]
[1694039374030,0.01,25789.0,25788.0,3.16164474]
[1694039377457,0.2,25789.0,25788.0,3.16164474]
[1694039378665,0.01,25789.0,25788.0,3.16164474]
[1694039382287,0.01,25789.0,25788.0,3.54829001]
[1694039388463,0.01,25789.0,25788.0,3.13864474]
[1694039392313,0.24827785,25789.0,25788.0,1.46673674]
[1694039392731,0.24827785,25789.0,25788.0,2.24229074]
[1694039392931,0.24827785,25789.0,25784.0,0.775656]
[1694039392932,2.90081351,25789.0,25784.0,0.775656]
[1694039393138,0.1208,25785.0,25784.0,0.77567]
[1694039393381,0.03679624,25785.0,25784.0,1.551344]
[1694039393506,0.03679624,25785.0,25783.0,1.55138]
[1694039393507,1.16228927,25785.0,25782.0,0.775721]
[1694039393712,0.42344151,25785.0,25783.0,1.551371]
[1694039393917,0.25056569,25784.0,25783.0,1.551371]
[1694039395375,0.26856569,25784.0,25783.0,1.553371]
[1694039395602,0.26856569,25784.0,25783.0,1.555371]
[1694039396363,0.26856569,25784.0,25783.0,1.553371]
[1694039396567,0.29156569,25784.0,25783.0,1.555371]
[1694039398700,0.29156569,25784.0,25783.0,0.004]
[1694039398701,0.77946901,25784.0,25783.0,0.004]
[1694039398914,4.05387024,25784.0,25783.0,0.004]
[1694039399135,4.0972119,25784.0,25783.0,0.004]
[1694039399356,3.9140831,25784.0,25783.0,0.004]
[1694039399601,3.9146231,25784.0,25783.0,0.004]
[1694039399815,3.8900631,25784.0,25783.0,0.002]
[1694039400037,3.79680874,25784.0,25783.0,0.002]
[1694039400247,3.91069254,25784.0,25783.0,0.004]
[1694039400458,3.66353107,25784.0,25783.0,0.004]
[1694039400669,3.66353107,25784.0,25777.0,0.775882]
[1694039400670,3.53669107,25784.0,25777.0,0.775882]
[1694039400884,0.1208,25780.0,25777.0,0.775882]
[1694039401098,0.38664527,25779.0,25777.0,0.775882]
[1694039401318,0.38664527,25779.0,25778.0,0.0693235]
[1694039401528,0.38664527,25779.0,25777.0,0.775882]
[1694039402353,0.38664527,25779.0,25777.0,0.777882]
[1694039402557,0.38664527,25779.0,25777.0,1.553767]
[1694039403226,0.38664527,25779.0,25777.0,1.551767]
[1694039403656,0.40564527,25779.0,25777.0,1.553767]
[1694039404328,0.42364527,25779.0,25777.0,1.555767]
[1694039404972,0.42364527,25779.0,25778.0,0.0472303]
[1694039405594,0.42364527,25779.0,25778.0,0.8230853]
[1694039406002,0.38664527,25779.0,25778.0,0.8230853]
[1694039406182,0.38664527,25779.0,25778.0,0.8250853]
[1694039406183,0.40564527,25779.0,25778.0,0.8250853]
[1694039406631,0.40564527,25779.0,25778.0,1.6009403]
[1694039406841,0.40564527,25779.0,25778.0,0.8250853]
[1694039407027,0.40564527,25779.0,25778.0,1.6009403]
[1694039407239,0.019,25779.0,25778.0,2.3767953]
[1694039407443,0.037,25779.0,25778.0,2.3787953]
[1694039407646,0.037,25779.0,25778.0,1.6029403]
[1694039409113,0.037,25779.0,25778.0,2.3787953]
[1694039409725,0.037,25779.0,25778.0,1.6029403]
[1694039410578,0.037,25779.0,25778.0,2.4995953]
[1694039411670,0.019,25779.0,25778.0,2.4975953]
[1694039411883,0.029,25779.0,25778.0,2.4985953]
[1694039412094,0.01,25779.0,25778.0,2.4965953]
[1694039412529,0.021,25779.0,25778.0,2.4975953]
[1694039430150,0.021,25779.0,25778.0,0.002]
[1694039430357,0.021,25779.0,25778.0,0.777855]
[1694039432086,0.021,25779.0,25778.0,1.55371]
[1694039437586,0.021,25779.0,25778.0,2.329565]
[1694039437817,0.021,25779.0,25778.0,1.55371]
[1694039443662,0.021,25779.0,25778.0,2.329565]
[1694039451528,0.021,25779.0,25778.0,2.55220879]
[1694039456396,0.021,25779.0,25778.0,2.450365]
[1694039458942,0.021,25779.0,25778.0,2.70799923]
[1694039461076,0.021,25779.0,25778.0,2.450365]
[1694039461263,0.021,25779.0,25778.0,2.533365]
[1694039461462,0.021,25779.0,25778.0,2.833365]
[1694039462096,0.021,25779.0,25778.0,2.813365]
[1694039462303,0.021,25779.0,25778.0,2.833365]
[1694039462483,0.011,25779.0,25778.0,2.832365]
[1694039462894,0.012,25779.0,25778.0,2.819365]
[1694039463102,0.001,25779.0,25778.0,2.838365]
[1694039463356,0.002,25779.0,25778.0,2.845365]
[1694039464149,0.002,25779.0,25778.0,3.09703473]
[1694039474041,0.002,25779.0,25778.0,3.07403473]
[1694039477271,0.002,25779.0,25778.0,3.01403473]
[1694039477482,0.002,25779.0,25778.0,3.07403473]
[1694039479686,0.002,25779.0,25778.0,2.822365]
[1694039482706,0.002,25779.0,25778.0,2.845365]
[1694039483756,0.002,25779.0,25778.0,2.785365]
[1694039483963,0.002,25779.0,25778.0,2.845365]
[1694039484742,0.002,25779.0,25778.0,3.23201027]
[1694039489949,0.002,25779.0,25778.0,3.45993064]
[1694039491032,0.002,25779.0,25778.0,3.07328537]
[1694039492179,0.002,25779.0,25778.0,3.05028537]
[1694039506889,0.002,25779.0,25778.0,3.20901027]
[1694039507097,0.002,25779.0,25778.0,3.23201027]
[1694039512210,0.25536462,25784.0,25780.0,0.06]
[1694039512433,0.33222659,25785.0,25783.0,0.1208]
[1694039512434,0.10006462,25785.0,25783.0,0.1208]
[1694039512643,0.09286462,25785.0,25784.0,1.672148]
[1694039512827,0.09286462,25786.0,25784.0,3.223496]
[1694039513057,0.57669121,25787.0,25785.0,0.1208]
[1694039513281,0.09286462,25786.0,25784.0,0.775674]
[1694039513491,0.09286462,25786.0,25785.0,0.34850315]
[1694039513695,0.09286462,25786.0,25785.0,2.67543515]
[1694039514131,0.09286462,25786.0,25785.0,2.67743515]
[1694039514342,0.09286462,25786.0,25785.0,2.67543515]
[1694039514768,0.09286462,25786.0,25785.0,2.447732]
[1694039514974,0.25316173,25786.0,25785.0,2.447732]
[1694039515180,0.16029711,25786.0,25785.0,2.447732]
[1694039516022,0.13929711,25786.0,25785.0,2.447732]
[1694039516231,0.24435456,25786.0,25785.0,2.448732]
[1694039516441,0.15129711,25786.0,25785.0,2.448732]
[1694039516622,0.25535154,25786.0,25785.0,2.449732]
[1694039518256,0.16229711,25786.0,25785.0,2.449732]
[1694039518476,0.2553488,25786.0,25785.0,2.449732]
[1694039518705,0.11605169,25786.0,25785.0,2.449732]
[1694039519734,0.11605169,25786.0,25785.0,0.1228]
[1694039524120,0.023,25786.0,25785.0,0.1228]
[1694039528673,0.023,25786.0,25785.0,0.30047626]
[1694039533376,0.023,25786.0,25785.0,0.1228]
[1694039543179,0.2053488,25787.0,25785.0,0.1228]
[1694039544521,0.2053488,25787.0,25786.0,0.08989761]
[1694039545748,0.15829711,25787.0,25786.0,0.08989761]
[1694039545903,0.17529711,25787.0,25786.0,0.08989761]
[1694039546280,0.15629711,25787.0,25786.0,0.08989761]
[1694039546577,0.17529711,25787.0,25786.0,0.09189761]
[1694039547645,0.15829711,25787.0,25786.0,0.09189761]
[1694039547843,0.15829711,25787.0,25786.0,0.09289761]
[1694039548021,0.17529711,25787.0,25786.0,0.09289761]
[1694039550032,0.17529711,25787.0,25786.0,2.41973961]
[1694039550796,0.36102659,25787.0,25786.0,2.41973961]
[1694039551708,0.22172948,25787.0,25786.0,2.41973961]
[1694039553220,0.22172948,25787.0,25786.0,2.54053961]
[1694039554643,0.45389104,25787.0,25786.0,2.54053961]
[1694039555693,0.45389104,25787.0,25786.0,1.76492561]
[1694039555851,0.26816156,25787.0,25786.0,1.76492561]
[1694039557532,1.50157641,25787.0,25786.0,0.003]
[1694039557693,1.26941485,25787.0,25786.0,0.003]
[1694039557889,0.49383085,25787.0,25786.0,0.003]
[1694039561112,1.26941485,25787.0,25786.0,0.003]
[1694039562646,3.04138285,25787.0,25786.0,0.003]
[1694039562806,3.31997707,25787.0,25786.0,0.003]
[1694039566689,3.38469015,25787.0,25786.0,0.003]
[1694039566891,3.32058062,25787.0,25786.0,0.003]
[1694039577597,3.30058062,25787.0,25786.0,0.003]